fUST/lending_fUST_20250604
["ID","MTS","AMOUNT","RATE_DAILY","PERIOD"]
[364185420,1749033043121,-151.0,0.00020938,2]
[364185422,1749033043131,-536.78739081,0.00020969,4]
[364185424,1749033043141,-151.0,0.00020986,2]
[364185426,1749033043150,-151.0,0.00020986,2]
[364185428,1749033043159,-151.0,0.00020986,2]
[364185430,1749033043169,-594.654038,0.00020986,2]
[364185432,1749033043179,-594.654038,0.00020986,2]
[364185434,1749033043189,-211.208846,0.00020986,2]
[364185436,1749033043198,-211.208846,0.00020986,2]
[364185439,1749033043211,-7519.99480093,0.00021,2]
[364185441,1749033043225,-21421.0,0.00021,2]
[364185444,1749033043239,-151.0,0.00021,2]
[364185446,1749033043252,-151.0,0.00021,2]
[364185448,1749033043265,-151.0,0.00021,2]
[364185450,1749033043276,-151.0,0.00021,2]
[364185452,1749033043286,-151.0,0.00021,2]
[364185455,1749033043299,-298.419392,0.00021,2]
[364185457,1749033043311,-174.183227,0.00021,2]
[364185459,1749033043325,-174.183227,0.00021,2]
[364185461,1749033043337,-151.0,0.00021,2]
[364185464,1749033043350,-151.4041,0.00021,2]
[364185466,1749033043362,-151.4041,0.00021,2]
[364185468,1749033043374,-1176.813153,0.00021,2]
[364185471,1749033043387,-1176.813153,0.00021,2]
[364185473,1749033043400,-424.238968,0.00021,2]
[364185475,1749033043413,-424.238968,0.00021,2]
[364185478,1749033043424,-151.0,0.00021,2]
[364185480,1749033043436,-151.0,0.00021,2]
[364185482,1749033043448,-151.0,0.00021,2]
[364185484,1749033043460,-287.662254,0.00021,2]
[364185486,1749033043471,-370.846668,0.00021,2]
[364185489,1749033043482,-370.846668,0.00021,2]
[364185491,1749033043496,-190.277949,0.00021,2]
[364185494,1749033043509,-151.0,0.00021,2]
[364185496,1749033043521,-151.0,0.00021,2]
[364185500,1749033043533,-339.406614,0.00021,2]
[364185503,1749033043544,-339.406614,0.00021,2]
[364185506,1749033043555,-200.853212,0.00021,2]
[364185509,1749033043567,-264.95633792,0.00021,8]
[364185511,1749033043578,-200.853212,0.00021,2]
[364185514,1749033043590,-151.0,0.00021,2]
[364185516,1749033043602,-151.0,0.00021,2]
[364185518,1749033043613,-151.0,0.00021,2]
[364185520,1749033043625,-156.856064,0.00021,2]
[364185523,1749033043638,-594.654038,0.00021,2]
[364185525,1749033043650,-594.654038,0.00021,2]
[364185527,1749033043663,-762.579035,0.00021,2]
[364185530,1749033043674,-762.579035,0.00021,2]
[364185532,1749033043687,-762.579035,0.00021,2]
[364185534,1749033043698,-762.579035,0.00021,2]
[364185536,1749033043709,-151.0,0.00021,2]
[364185538,1749033043719,-151.0,0.00021,2]
[364185540,1749033043732,-151.0,0.00021,2]
[364185542,1749033043750,-168.698959,0.00021,2]
[364185545,1749033043762,-168.698959,0.00021,2]
[364185547,1749033043776,-211.208846,0.00021,2]
[364185550,1749033043791,-211.208846,0.00021,2]
[364185552,1749033043802,-151.0,0.00021,2]
[364185554,1749033043812,-292.6608,0.00021,2]
[364185556,1749033043823,-151.0,0.00021,2]
[364185558,1749033043834,-456.812669,0.00021,2]
[364185560,1749033043845,-456.812669,0.00021,2]
[364185562,1749033043857,-701.52,0.00021124,2]
[364185565,1749033043869,-841.66,0.00021124,2]
[364185567,1749033043879,-151.0,0.00021124,2]
[364185569,1749033043890,-168.698959,0.00021124,2]
[364185571,1749033043900,-168.698959,0.00021124,2]
[364185573,1749033043911,-151.0,0.00021124,2]
[364185575,1749033043922,-550.35,0.00021124,2]
[364185577,1749033043932,-151.0,0.00021124,2]
[364185580,1749033043943,-440.0,0.00021124,2]
[364185582,1749033043955,-440.0,0.00021124,2]
[364185584,1749033043966,-1176.813153,0.00021125,2]
[364185586,1749033043978,-1176.813153,0.00021125,2]
[364185588,1749033043989,-440.0,0.00021125,2]
[364185591,1749033044001,-3038.17,0.00021125,2]
[364185593,1749033044013,-456.57,0.00021125,2]
[364185595,1749033044025,-3540.94,0.00021125,2]
[364185597,1749033044036,-1032.05,0.00021125,2]
[364185599,1749033044048,-465.6339055,0.00021128,2]
[364185602,1749033044059,-709.0,0.00021147,2]
[364185604,1749033044070,-2225.0,0.00021147,2]
[364185606,1749033044081,-405.0,0.00021147,2]
[364185608,1749033044093,-500.0,0.00021164,2]
[364185610,1749033044105,-536.78739081,0.00021176,4]
[364185612,1749033044116,-500.95088077,0.00021192,2]
[364185614,1749033044127,-195.36693875,0.00021192,2]
[364185617,1749033044138,-370.846668,0.0002126,2]
[364185619,1749033044150,-370.846668,0.0002126,2]
[364185621,1749033044161,-190.277949,0.0002126,2]
[364185623,1749033044173,-151.0,0.0002126,2]
[364185625,1749033044183,-339.406614,0.0002126,2]
[364185627,1749033044195,-339.406614,0.0002126,2]
[364185629,1749033044205,-200.853212,0.0002126,2]
[364185631,1749033044217,-200.853212,0.0002126,2]
[364185634,1749033044229,-151.0,0.0002126,2]
[364185636,1749033044240,-594.654038,0.0002126,2]
[364185638,1749033044251,-594.654038,0.0002126,2]
[364185640,1749033044263,-151.0,0.0002126,2]
[364185642,1749033044274,-151.0,0.0002126,2]
[364185644,1749033044286,-211.208846,0.0002126,2]
[364185647,1749033044297,-211.208846,0.0002126,2]
[364185649,1749033044309,-456.812669,0.0002126,2]
[364185651,1749033044320,-456.812669,0.0002126,2]
[364185653,1749033044331,-174.183227,0.00021261,2]
[364185655,1749033044343,-174.183227,0.00021261,2]
[364185658,1749033044354,-151.4041,0.00021261,2]
[364185660,1749033044367,-151.4041,0.00021261,2]
[364185662,1749033044377,-151.0,0.00021261,2]
[364185664,1749033044388,-151.0,0.00021279,2]
[364185666,1749033044399,-151.0,0.00021279,2]
[364185668,1749033044411,-151.0,0.00021318,2]
[364185670,1749033044422,-738.95951922,0.00021318,2]
[364185672,1749033044433,-151.0,0.00021381,2]
[364185675,1749033044444,-151.0,0.00021381,2]
[364185677,1749033044455,-536.78739081,0.00021383,5]
[364185679,1749033044466,-247.30473521,0.00021398,2]
[364185746,1749033045110,46658.61465122,0.00025,30]
[364185749,1749033045136,-160.0,0.00020037,2]
[364185751,1749033045146,-191.5434118,0.00021398,2]
[364185753,1749033045158,-262.67185299,0.00021398,2]
[364185755,1749033045168,-841.66,0.00021398,2]
[364185758,1749033045177,-550.35,0.00021398,2]
[364185760,1749033045187,-440.0,0.00021398,2]
[364185762,1749033045196,-440.0,0.00021398,2]
[364185764,1749033045206,-424.238968,0.00021399,2]
[364185766,1749033045215,-424.238968,0.00021399,2]
[364185768,1749033045225,-151.0,0.00021399,2]
[364185769,1749033045235,-225.806034,0.00021399,2]
[364185772,1749033045246,-151.0,0.00021399,2]
[364185773,1749033045255,-295.2455414,0.00021399,2]
[364185776,1749033045267,-226.38969308,0.00021399,2]
[364185777,1749033045276,-293.44180237,0.00021399,2]
[364185780,1749033045289,-2744.72819763,0.00021399,2]
[364185782,1749033045298,-456.57,0.00021399,2]
[364185784,1749033045307,-3540.94,0.00021399,2]
[364185786,1749033045316,-762.579035,0.00021399,2]
[364185788,1749033045327,-762.579035,0.00021399,2]
[364185790,1749033045336,-297.406986,0.00021399,2]
[364185792,1749033045347,-168.698959,0.00021399,2]
[364185794,1749033045357,-168.698959,0.00021399,2]
[364185796,1749033045366,-151.0,0.00021399,2]
[364185798,1749033045375,-208.639663,0.00021399,2]
[364185799,1749033045385,-1032.05,0.00021399,2]
[364185801,1749033045395,-151.0,0.00021491,2]
[364185803,1749033045404,-1176.813153,0.00021534,2]
[364185805,1749033045414,-1176.813153,0.00021534,2]
[364185808,1749033045426,-151.0,0.00021535,2]
[364185810,1749033045436,-151.0,0.00021537,2]
[364185812,1749033045447,-1102.39528179,0.00021547,2]
[364185814,1749033045456,-536.78739081,0.0002159,5]
[364185816,1749033045466,-151.0,0.0002159,2]
[364185818,1749033045476,-151.0,0.0002159,2]
[364185820,1749033045486,-594.654038,0.0002159,2]
[364185822,1749033045496,-594.654038,0.0002159,2]
[364185824,1749033045506,-211.208846,0.0002159,2]
[364185826,1749033045516,-211.208846,0.0002159,2]
[364185828,1749033045526,-151.0,0.00021606,2]
[364185830,1749033045535,-280.15502885,0.00021659,2]
[364185832,1749033045544,-25000.0,0.0002166,2]
[364185834,1749033045554,-151.0,0.0002166,2]
[364185836,1749033045563,-151.0,0.0002166,2]
[364185838,1749033045573,-151.0,0.0002166,2]
[364185840,1749033045583,-286.261428,0.0002166,2]
[364185842,1749033045593,-174.183227,0.0002166,2]
[364185844,1749033045604,-174.183227,0.0002166,2]
[364185846,1749033045613,-151.0,0.0002166,2]
[364185848,1749033045623,-151.4041,0.0002166,2]
[364185850,1749033045632,-151.4041,0.0002166,2]
[364185852,1749033045643,-1176.813153,0.0002166,2]
[364185854,1749033045652,-1176.813153,0.0002166,2]
[364185856,1749033045662,-424.238968,0.0002166,2]
[364185858,1749033045672,-424.238968,0.0002166,2]
[364185860,1749033045682,-151.0,0.0002166,2]
[364185862,1749033045692,-151.0,0.0002166,2]
[364185864,1749033045702,-370.846668,0.0002166,2]
[364185866,1749033045711,-370.846668,0.0002166,2]
[364185868,1749033045721,-130.39078895,0.0002166,2]
[364185952,1749033046518,-59.88716005,0.0002166,2]
[364185954,1749033046529,-151.0,0.0002166,2]
[364185956,1749033046540,-151.0,0.0002166,2]
[364185958,1749033046550,-135.88283995,0.0002166,2]
[364188851,1749033445181,164.656812,0.00013699,2]
[364188853,1749033548369,-3312.0,0.000178,2]
[364188854,1749033548393,-872.51640341,0.000178,3]
[364188855,1749033548418,-1000.0,0.000184,7]
[364188856,1749033548441,-1000.0,0.000184,7]
[364188857,1749033548464,-300.0,0.00018426,2]
[364188858,1749033548487,-1000.0,0.00018427,2]
[364188859,1749033548510,-1000.0,0.00018427,2]
[364188860,1749033548533,-300.0,0.00018656,2]
[364188861,1749033548554,-300.0,0.00018657,2]
[364188862,1749033548578,-300.0,0.00018657,2]
[364188863,1749033548600,-300.0,0.00018657,2]
[364188864,1749033548623,-1200.0,0.00018657,2]
[364188865,1749033548645,-430.0,0.00018657,2]
[364188866,1749033548670,-440.0,0.00018657,2]
[364188867,1749033548695,-440.0,0.00018657,2]
[364188868,1749033548718,-440.0,0.00018657,2]
[364188869,1749033548741,-440.0,0.00018657,2]
[364188870,1749033548765,-440.0,0.00018657,2]
[364188871,1749033548790,-2077.89,0.00018657,2]
[364188872,1749033548814,-440.0,0.00018657,2]
[364188873,1749033548840,-356.59359659,0.00018657,2]
[364188875,1749033772810,1320.0,0.00025,120]
[364188876,1749033796840,1660.0,0.00025,120]
[364188878,1749033814751,880.0,0.00025,120]
[364188879,1749033828152,440.0,0.00025,120]
[364188935,1749034232933,-168.19204084,0.00018555,2]
[364188936,1749034232944,-178.65005419,0.00018557,2]
[364188937,1749034232954,-300.0,0.00018655,2]
[364188938,1749034232965,-519.59724508,0.00018655,2]
[364188939,1749034232975,-300.0,0.00018655,2]
[364188940,1749034232984,-300.0,0.00018655,2]
[364188941,1749034232994,-480.0,0.00018655,2]
[364188942,1749034233004,-440.0,0.00018655,2]
[364188943,1749034233014,-430.0,0.00018656,2]
[364188944,1749034233024,-430.0,0.00018656,2]
[364188945,1749034233034,-430.0,0.00018656,2]
[364188946,1749034233044,-440.0,0.00018656,2]
[364188947,1749034233054,-440.0,0.00018656,2]
[364188948,1749034233064,-440.0,0.00018656,2]
[364188949,1749034233074,-440.0,0.00018656,2]
[364188950,1749034233084,-440.0,0.00018656,2]
[364188951,1749034233094,-519.48,0.00018656,2]
[364188952,1749034233105,-440.0,0.00018656,2]
[364188953,1749034233115,-1719.69,0.00018656,2]
[364188954,1749034233125,-635.07,0.00018656,2]
[364188955,1749034233135,-430.0,0.00018656,2]
[364188956,1749034233147,-430.0,0.00018656,2]
[364188957,1749034233157,-440.0,0.00018656,2]
[364188958,1749034233167,-440.0,0.00018656,2]
[364188959,1749034233178,-430.0,0.00018656,2]
[364188960,1749034233188,-430.0,0.00018656,2]
[364188961,1749034233198,-430.0,0.00018656,2]
[364188962,1749034233208,-440.0,0.00018656,2]
[364188963,1749034233218,-440.0,0.00018656,2]
[364188964,1749034233228,-430.0,0.00018656,2]
[364188965,1749034233239,-440.0,0.00018656,2]
[364188966,1749034233249,-440.0,0.00018656,2]
[364188967,1749034233259,-440.0,0.00018656,2]
[364188968,1749034233270,-355.97888867,0.00018656,2]
[364188969,1749034233279,-440.0,0.00018656,2]
[364188970,1749034233289,-440.0,0.00018656,2]
[364188971,1749034233299,-558.16197052,0.00018656,2]
[364188972,1749034233308,-440.0,0.00018656,2]
[364188973,1749034233318,-440.0,0.00018656,2]
[364188974,1749034233328,-440.0,0.00018656,2]
[364188975,1749034233338,-430.0,0.00018656,2]
[364188976,1749034233348,-530.0,0.00018656,2]
[364188977,1749034233358,-440.0,0.00018656,2]
[364188978,1749034233368,-440.0,0.00018656,2]
[364188979,1749034233378,-430.0,0.00018656,2]
[364188980,1749034233387,-430.0,0.00018656,2]
[364188981,1749034233397,-422.21,0.00018656,2]
[364188982,1749034233407,-440.0,0.00018656,2]
[364188983,1749034233416,-440.0,0.00018656,2]
[364188984,1749034233426,-430.0,0.00018656,2]
[364188985,1749034233436,-440.0,0.00018656,2]
[364188986,1749034233446,-440.0,0.00018656,2]
[364188987,1749034233455,-440.0,0.00018656,2]
[364188988,1749034233465,-430.0,0.00018656,2]
[364188989,1749034233475,-430.0,0.00018656,2]
[364188990,1749034233484,-2089.81,0.00018656,2]
[364188991,1749034233494,-430.0,0.00018656,2]
[364188992,1749034233504,-430.0,0.00018656,2]
[364188993,1749034233513,-440.0,0.00018656,2]
[364188994,1749034233522,-440.0,0.00018656,2]
[364188995,1749034233531,-440.0,0.00018656,2]
[364188996,1749034233541,-1199.15,0.00018656,2]
[364188997,1749034233550,-440.0,0.00018656,2]
[364188998,1749034233560,-430.0,0.00018657,2]
[364188999,1749034233570,-401.78527147,0.00018657,2]
[364189000,1749034233580,-430.0,0.00018657,2]
[364189001,1749034233589,-400.8738898,0.00018657,2]
[364189002,1749034233599,-430.0,0.00018657,2]
[364189003,1749034233611,-430.0,0.00018657,2]
[364189004,1749034233621,-500.0,0.00018657,2]
[364189005,1749034233631,-200.0,0.00018657,2]
[364189006,1749034233641,-500.0,0.00018657,2]
[364189007,1749034233650,-500.0,0.00018657,2]
[364189008,1749034233660,-461.65844302,0.00018657,2]
[364189009,1749034233671,-591.58027676,0.00018657,2]
[364189010,1749034233680,-500.0,0.00018657,2]
[364189011,1749034233691,-440.0,0.00018657,2]
[364189012,1749034233701,-430.0,0.00018657,2]
[364189013,1749034233711,-430.0,0.00018657,2]
[364189014,1749034233721,-440.0,0.00018657,2]
[364189015,1749034233731,-440.0,0.00018657,2]
[364189016,1749034233741,-430.0,0.00018657,2]
[364189017,1749034233751,-430.0,0.00018657,2]
[364189018,1749034233761,-908.48,0.00018657,2]
[364189019,1749034233771,-440.0,0.00018657,2]
[364189020,1749034233781,-440.0,0.00018657,2]
[364189021,1749034233791,-430.0,0.00018657,2]
[364189022,1749034233801,-440.0,0.00018657,2]
[364189023,1749034233811,-4058.97,0.00018657,2]
[364189024,1749034233821,-430.0,0.00018657,2]
[364189025,1749034233831,-587.3,0.00018657,2]
[364189026,1749034233841,-151.0,0.00018657,2]
[364189027,1749034233851,-440.0,0.00018657,2]
[364189028,1749034233861,-430.0,0.00018657,2]
[364189029,1749034233870,-440.0,0.00018657,2]
[364189030,1749034233880,-430.0,0.00018657,2]
[364189031,1749034233891,-440.0,0.00018657,2]
[364189032,1749034233901,-430.0,0.00018657,2]
[364189033,1749034233912,-430.0,0.00018657,2]
[364189034,1749034233922,-440.0,0.00018657,2]
[364189035,1749034233932,-440.0,0.00018657,2]
[364189036,1749034233942,-440.0,0.00018657,2]
[364189037,1749034233952,-440.0,0.00018657,2]
[364189038,1749034233962,-430.0,0.00018657,2]
[364189039,1749034233972,-565.65780778,0.00018657,2]
[364189040,1749034233981,-430.0,0.00018657,2]
[364189041,1749034233991,-440.0,0.00018657,2]
[364189042,1749034234001,-440.0,0.00018657,2]
[364189043,1749034234011,-430.0,0.00018657,2]
[364189044,1749034234021,-430.0,0.00018657,2]
[364189045,1749034234031,-440.0,0.00018657,2]
[364189046,1749034234041,-430.0,0.00018657,2]
[364189047,1749034234051,-420.60112534,0.00018657,2]
[364189048,1749034234061,-483.81,0.00018657,2]
[364189049,1749034234071,-440.0,0.00018657,2]
[364189050,1749034234082,-440.0,0.00018657,2]
[364189051,1749034234092,-440.0,0.00018657,2]
[364189052,1749034234102,-300.0,0.00018657,2]
[364189053,1749034234112,-303.16635649,0.00018657,2]
[364189054,1749034234122,-440.0,0.00018657,2]
[364189055,1749034234132,-450.0,0.00018657,2]
[364189056,1749034234144,-450.0,0.00018657,2]
[364189057,1749034234155,-430.0,0.00018657,2]
[364189058,1749034234165,-440.0,0.00018657,2]
[364189059,1749034234175,-401.06920622,0.00018657,2]
[364189060,1749034234186,-400.0,0.00018657,2]
[364189061,1749034234197,-440.0,0.00018657,2]
[364189062,1749034234207,-302.53364823,0.00018657,2]
[364189063,1749034234217,-404.83808626,0.00018657,2]
[364189064,1749034234228,-430.0,0.00018657,2]
[364189065,1749034234238,-440.0,0.00018657,2]
[364189066,1749034234248,-430.0,0.00018657,2]
[364189067,1749034234259,-430.0,0.00018657,2]
[364189068,1749034234270,-154.35407111,0.00018657,2]
[364189069,1749034234281,-151.0,0.00018657,2]
[364189070,1749034234291,-1444.58,0.00018657,2]
[364189071,1749034234301,-430.0,0.00018658,2]
[364189072,1749034234312,-430.0,0.00018658,2]
[364189073,1749034234322,-430.0,0.00018658,2]
[364189074,1749034234332,-400.0,0.00018658,2]
[364189075,1749034234343,-440.0,0.00018658,2]
[364189076,1749034234353,-440.0,0.00018658,2]
[364189077,1749034234363,-440.0,0.00018658,2]
[364189078,1749034234373,-400.0,0.00018658,2]
[364189079,1749034234383,-430.0,0.00018658,2]
[364189080,1749034234393,-440.0,0.00018658,2]
[364189081,1749034234403,-430.0,0.00018658,2]
[364189082,1749034234413,-500.0,0.00018658,2]
[364189083,1749034234422,-440.0,0.00018658,2]
[364189084,1749034234432,-440.0,0.00018658,2]
[364189085,1749034234441,-430.0,0.00018658,2]
[364189086,1749034234451,-440.0,0.00018658,2]
[364189087,1749034234468,-440.0,0.00018658,2]
[364189088,1749034234481,-440.0,0.00018658,2]
[364189089,1749034234491,-440.0,0.00018658,2]
[364189090,1749034234501,-440.0,0.00018658,2]
[364189091,1749034234511,-440.0,0.00018658,2]
[364189092,1749034234521,-430.0,0.00018658,2]
[364189093,1749034234531,-440.11930814,0.00018658,2]
[364189094,1749034234694,-440.0,0.00018658,2]
[364189095,1749034234705,-440.0,0.00018658,2]
[364189096,1749034234715,-440.0,0.00018658,2]
[364189097,1749034234725,-440.0,0.00018658,2]
[364189098,1749034234735,-430.0,0.00018658,2]
[364189099,1749034234746,-990.0,0.00018658,2]
[364189100,1749034234756,-430.0,0.00018658,2]
[364189101,1749034234767,-154.68362545,0.00018658,2]
[364189102,1749034234776,-440.0,0.00018658,2]
[364189103,1749034234787,-151.0,0.00018658,2]
[364189104,1749034234797,-151.0,0.00018658,2]
[364189105,1749034234807,-152.60665104,0.00018658,2]
[364189106,1749034234817,-152.96647733,0.00018658,2]
[364189107,1749034234827,-152.57428878,0.00018658,2]
[364189108,1749034234836,-430.0,0.00018658,2]
[364189109,1749034234846,-447.08089917,0.00018658,2]
[364189110,1749034234856,-440.0,0.00018658,2]
[364189111,1749034234866,-440.0,0.00018658,2]
[364189112,1749034234876,-440.0,0.00018658,2]
[364189113,1749034234885,-430.0,0.00018658,2]
[364189114,1749034234895,-430.0,0.00018658,2]
[364189115,1749034234905,-440.0,0.00018658,2]
[364189116,1749034234915,-430.0,0.00018658,2]
[364189117,1749034234925,-440.0,0.00018658,2]
[364189118,1749034234935,-400.0,0.00018658,2]
[364189119,1749034234944,-440.0,0.00018658,2]
[364189120,1749034234955,-430.0,0.00018658,2]
[364189121,1749034234964,-422.0,0.00018658,2]
[364189122,1749034234974,-412.80301235,0.00018658,2]
[364189123,1749034234983,-430.0,0.00018658,2]
[364189124,1749034234993,-440.0,0.00018658,2]
[364189125,1749034235003,-485.84691417,0.00018658,2]
[364189126,1749034235013,-430.0,0.00018658,2]
[364189127,1749034235023,-440.0,0.00018658,2]
[364189128,1749034235036,-430.0,0.00018658,2]
[364189129,1749034235047,-440.0,0.00018658,2]
[364189130,1749034235057,-1645.68,0.00018658,2]
[364189131,1749034235067,-500.0,0.00018658,2]
[364189132,1749034235077,-440.0,0.00018658,2]
[364189133,1749034235087,-440.0,0.00018658,2]
[364189134,1749034235097,-440.0,0.00018658,2]
[364189135,1749034235107,-430.0,0.00018658,2]
[364189136,1749034235116,-440.0,0.00018658,2]
[364189137,1749034235126,-425.0,0.00018658,2]
[364189138,1749034235136,-440.0,0.00018658,2]
[364189139,1749034235149,-440.0,0.00018658,2]
[364189140,1749034235162,-206.1123662,0.00018658,2]
[364189141,1749034235172,-430.0,0.00018658,2]
[364189142,1749034235183,-430.0,0.00018658,2]
[364189143,1749034235193,-430.0,0.00018658,2]
[364189144,1749034235203,-350.34277277,0.00018658,2]
[364189145,1749034235213,-440.0,0.00018658,2]
[364189146,1749034235225,-451.5165726,0.00018658,2]
[364189147,1749034235235,-450.0,0.00018658,2]
[364189148,1749034235244,-440.0,0.00018658,2]
[364189149,1749034235253,-430.0,0.00018658,2]
[364189150,1749034235263,-440.0,0.00018658,2]
[364189151,1749034235273,-430.0,0.00018658,2]
[364189152,1749034235283,-430.0,0.00018658,2]
[364189153,1749034235293,-430.0,0.00018658,2]
[364189154,1749034235303,-430.0,0.00018658,2]
[364189155,1749034235313,-430.0,0.00018658,2]
[364189156,1749034235323,-440.0,0.00018658,2]
[364189157,1749034235334,-430.0,0.00018658,2]
[364189158,1749034235345,-430.0,0.00018658,2]
[364189159,1749034235357,-500.0,0.00018659,2]
[364189160,1749034235370,-151.0,0.00018684,2]
[364189161,1749034235382,-153.63040723,0.00018684,2]
[364189162,1749034235393,-990.0,0.00018685,2]
[364189163,1749034235403,-151.0,0.00018685,2]
[364189164,1749034235412,-151.0,0.00018685,2]
[364189165,1749034235423,-151.0,0.00018712,2]
[364189166,1749034235432,-990.0,0.00018713,2]
[364189167,1749034235443,-202.74046267,0.00018713,2]
[364189168,1749034235453,-216.58091068,0.00018713,2]
[364189169,1749034235463,-151.0,0.00018739,2]
[364189170,1749034235472,-990.0,0.0001874,2]
[364189171,1749034235482,-212.62966887,0.00018767,2]
[364189172,1749034235492,-990.0,0.00018768,2]
[364189173,1749034235502,-990.0,0.00018795,2]
[364189174,1749034235514,-990.0,0.00018822,2]
[364189175,1749034235524,-990.0,0.0001885,2]
[364189176,1749034235534,-990.0,0.00018877,2]
[364189177,1749034235544,-990.0,0.00018905,2]
[364189178,1749034235554,-440.0,0.00018929,2]
[364189179,1749034235563,-420.0,0.0001893,2]
[364189180,1749034235573,-440.0,0.0001893,2]
[364189181,1749034235583,-440.0,0.0001893,2]
[364189182,1749034235592,-420.0,0.0001893,2]
[364189183,1749034235603,-420.0,0.0001893,2]
[364189184,1749034235612,-519.48,0.0001893,2]
[364189185,1749034235623,-275.83,0.0001893,2]
[364189186,1749034235634,-1719.69,0.0001893,2]
[364189187,1749034235645,-635.07,0.0001893,2]
[364189188,1749034235655,-420.0,0.0001893,2]
[364189189,1749034235664,-440.0,0.0001893,2]
[364189190,1749034235673,-440.0,0.0001893,2]
[364189191,1749034235683,-440.0,0.0001893,2]
[364189192,1749034235695,-410.0,0.0001893,2]
[364189193,1749034235704,-440.0,0.0001893,2]
[364189194,1749034235714,-440.0,0.0001893,2]
[364189195,1749034235723,-440.0,0.0001893,2]
[364189196,1749034235733,-440.0,0.0001893,2]
[364189197,1749034235742,-440.0,0.0001893,2]
[364189198,1749034235752,-440.0,0.0001893,2]
[364189199,1749034235763,-420.0,0.0001893,2]
[364189200,1749034235773,-420.0,0.0001893,2]
[364189201,1749034235783,-420.0,0.0001893,2]
[364189202,1749034235792,-440.0,0.0001893,2]
[364189203,1749034235802,-440.0,0.0001893,2]
[364189204,1749034235812,-440.0,0.0001893,2]
[364189205,1749034235822,-440.0,0.0001893,2]
[364189206,1749034235832,-440.0,0.0001893,2]
[364189207,1749034235842,-2089.81,0.0001893,2]
[364189208,1749034235851,-440.0,0.0001893,2]
[364189209,1749034235861,-420.0,0.0001893,2]
[364189210,1749034235871,-440.0,0.0001893,2]
[364189211,1749034235881,-1199.15,0.0001893,2]
[364189212,1749034235891,-486.10316095,0.0001893,2]
[364189213,1749034235901,-420.0,0.00018931,2]
[364189214,1749034235910,-440.0,0.00018931,2]
[364189215,1749034235920,-440.0,0.00018931,2]
[364189216,1749034235929,-908.48,0.00018931,2]
[364189217,1749034235939,-440.0,0.00018931,2]
[364189218,1749034235949,-440.0,0.00018931,2]
[364189219,1749034235958,-440.0,0.00018931,2]
[364189220,1749034235968,-4058.97,0.00018931,2]
[364189221,1749034235977,-421.39593358,0.00018931,2]
[364189222,1749034235987,-440.0,0.00018931,2]
[364189223,1749034235996,-441.68,0.00018931,2]
[364189224,1749034236006,-440.0,0.00018931,2]
[364189225,1749034236016,-440.0,0.00018931,2]
[364189226,1749034236026,-440.0,0.00018931,2]